bitfinex/quotes_BTCUSD_20260307
["timestamp","ask_amount","ask_price","bid_price","bid_amount"]
[1772891726834,4.787e-05,67934.0,67926.0,0.00148]
[1772891727748,4.787e-05,67934.0,67927.0,0.00148]
[1772891728154,4.787e-05,67934.0,67924.0,0.07361074]
[1772891728360,4.787e-05,67934.0,67928.0,0.00148]
[1772891729315,4.787e-05,67934.0,67922.0,0.0002]
[1772891729316,0.02369353,67933.0,67922.0,0.0002]
[1772891729518,0.02369353,67932.0,67922.0,0.0002]
[1772891731038,0.02369353,67930.0,67922.0,0.0002]
[1772891732540,0.02372011,67929.0,67922.0,0.0002]
[1772891734927,0.07360734,67928.0,67922.0,0.0002]
[1772891737888,4.787e-05,67927.0,67922.0,0.0002]
[1772891742061,0.01759709,67926.0,67922.0,0.0002]
[1772891742270,0.04126933,67925.0,67920.0,0.00148]
[1772891742470,4.787e-05,67927.0,67920.0,0.00148]
[1772891752339,0.07360734,67928.0,67920.0,0.00148]
[1772891754412,4.787e-05,67927.0,67920.0,0.00148]
[1772891762417,0.07360951,67926.0,67920.0,0.00148]
[1772891765412,4.787e-05,67925.0,67920.0,0.00148]
[1772891775104,4.787e-05,67925.0,67920.0,0.00168]
[1772891779112,4.787e-05,67925.0,67920.0,0.07529598]
[1772891780448,0.07360951,67926.0,67920.0,0.07529598]
[1772891781448,0.07360628,67929.0,67920.0,0.07529598]
[1772891782648,0.00022001,67927.0,67920.0,0.07529598]
[1772891784401,0.07365738,67926.0,67920.0,0.07529598]
[1772891789968,0.07387739,67926.0,67920.0,0.07529598]
[1772891793370,0.07382097,67934.0,67921.0,0.01812426]
[1772891795632,0.07382097,67934.0,67922.0,0.07361385]
[1772891796011,0.00022001,67934.0,67922.0,0.07361385]
[1772891799245,0.03828837,67932.0,67922.0,0.07361385]
[1772891799455,0.01682382,67929.0,67922.0,0.07361385]
[1772891799602,0.01682382,67929.0,67923.0,0.00148]
[1772891800013,0.01682382,67929.0,67924.0,0.00148]
[1772891800235,0.01679023,67928.0,67924.0,0.00148]
[1772891800586,0.07360575,67930.0,67924.0,0.00148]
[1772891800587,0.01679023,67927.0,67924.0,0.00148]
[1772891801067,0.01679023,67927.0,67920.0,0.0002]
[1772891801275,0.00643023,67927.0,67925.0,0.00148]
[1772891801418,0.03790456,67929.0,67925.0,0.00148]
[1772891801624,0.03790456,67929.0,67926.0,0.00148]
[1772891801845,0.03790456,67929.0,67926.0,0.00130916]
[1772891802047,0.03790456,67929.0,67920.0,0.0002]
[1772891802244,0.03790456,67929.0,67925.0,0.00148]
[1772891803062,0.03790456,67929.0,67920.0,0.0002]
[1772891803276,0.03790456,67929.0,67925.0,0.00148]
[1772891803782,0.03790456,67929.0,67925.0,0.0750903]
[1772891804507,0.07360411,67931.0,67925.0,0.0750903]
[1772891806001,0.00022001,67929.0,67925.0,0.0750903]
[1772891813744,0.01689681,67929.0,67925.0,0.0750903]
[1772891814379,0.03836136,67929.0,67925.0,0.0736103]
[1772891814583,0.03836136,67929.0,67925.0,0.0750903]
[1772891814885,0.03836136,67929.0,67920.0,0.0002]
[1772891815087,0.03836136,67929.0,67925.0,0.00148]
[1772891815261,0.03836136,67929.0,67925.0,0.00168]
[1772891816710,0.00022001,67929.0,67925.0,0.00168]
[1772891816909,0.00022001,67934.0,67925.0,0.07529003]
[1772891817062,0.07382097,67934.0,67922.0,0.07361365]
[1772891817263,0.07382097,67934.0,67923.0,0.00148]
[1772891817623,0.01663695,67930.0,67921.0,0.00148]
[1772891817789,0.02146455,67928.0,67921.0,0.00148]
[1772891818027,0.01663695,67927.0,67921.0,0.00148]
[1772891818540,0.01663695,67927.0,67920.0,0.0002]
[1772891818895,0.07360951,67926.0,67920.0,0.0002]
[1772891819142,0.07360951,67926.0,67921.0,0.00148]
[1772891819342,0.01661712,67925.0,67921.0,0.00148]
[1772891819549,0.01661712,67923.0,67921.0,0.00148]
[1772891819847,0.03808167,67923.0,67921.0,0.00148]
[1772891820398,0.03808167,67923.0,67918.0,0.07381811]
[1772891820670,0.02146455,67923.0,67919.0,0.00148]
[1772891820824,0.02146455,67923.0,67911.0,0.00148]
[1772891820825,0.02096241,67918.0,67911.0,0.00148]
[1772891821025,0.01721083,67916.0,67902.0,0.07363336]
[1772891821209,0.03817324,67916.0,67903.0,0.00148]
[1772891821837,0.03817324,67916.0,67904.0,0.00148]
[1772891822236,0.03817324,67916.0,67902.0,0.07363336]
[1772891822237,0.01690208,67915.0,67902.0,0.07363336]
[1772891822409,0.01690208,67915.0,67905.0,0.00148]
[1772891822612,0.01690208,67915.0,67905.0,0.0017001]
[1772891822878,0.01690208,67915.0,67906.0,0.07363119]
[1772891822879,0.09052369,67915.0,67906.0,0.07363119]
[1772891823095,0.09052369,67915.0,67907.0,0.00148]
[1772891823479,0.09052369,67915.0,67908.0,0.00148]
[1772891823673,0.09052369,67915.0,67909.0,0.00148]
[1772891824024,0.09052369,67915.0,67907.0,0.00029699]
[1772891824234,0.03920698,67914.0,67902.0,0.0002]
[1772891824445,0.02229337,67913.0,67903.0,0.00148]
[1772891824789,0.01691361,67911.0,67903.0,0.00148]
[1772891824991,0.07362685,67910.0,67903.0,0.00148]
[1772891825216,0.01691361,67909.0,67903.0,0.00148]
[1772891827987,0.01704581,67907.0,67903.0,0.00148]
[1772891830116,0.07363119,67906.0,67904.0,0.00148]
[1772891830459,0.09074364,67906.0,67905.0,0.00148]
[1772891830664,0.01711245,67905.0,67903.0,0.00148]
[1772891830817,0.01711245,67904.0,67903.0,0.00148]
[1772891831011,0.01563245,67904.0,67903.0,0.00148]
[1772891833122,0.01709033,67906.0,67903.0,0.00148]
[1772891835093,0.09072164,67906.0,67903.0,0.00148]
[1772891836057,0.01706183,67906.0,67903.0,0.00148]
[1772891839365,0.07369342,67914.0,67903.0,0.00148]
[1772891839515,0.02229337,67912.0,67903.0,0.00148]
[1772891839876,0.01704581,67911.0,67903.0,0.00148]
[1772891842420,0.02229337,67908.0,67903.0,0.00148]
[1772891842641,0.01704581,67907.0,67902.0,0.00148]
[1772891843030,0.01704581,67907.0,67900.0,0.002]
[1772891843234,0.01704581,67907.0,67902.0,0.00148]
[1772891844006,0.07362685,67910.0,67900.0,0.0756372]
[1772891844177,0.07362685,67910.0,67902.0,0.00148]
[1772891844419,0.07362685,67910.0,67902.0,0.00168]
[1772891844570,0.09067266,67910.0,67902.0,0.00168]
[1772891845328,0.08567266,67910.0,67902.0,0.00168]
[1772891846899,0.08567266,67910.0,67902.0,0.07531528]
[1772891847558,0.08567266,67910.0,67902.0,0.00168]
[1772891849490,0.06862685,67910.0,67902.0,0.00168]
[1772891849701,0.01704581,67909.0,67902.0,0.00168]
[1772891851972,0.07362902,67908.0,67902.0,0.00168]
[1772891857660,0.07384903,67908.0,67902.0,0.00168]
[1772891883261,0.07384903,67908.0,67902.0,0.0018944]
[1772891885530,0.07384903,67908.0,67902.0,0.0004144]
[1772891885734,0.07384903,67908.0,67902.0,0.0018944]
[1772891887665,0.0165648,67907.0,67902.0,0.0018944]
[1772891887879,0.0165648,67905.0,67902.0,0.00148]
[1772891891591,0.0165648,67905.0,67902.0,0.00168]
[1772891892755,0.01654712,67906.0,67902.0,0.00168]
[1772891898916,0.07363011,67907.0,67902.0,0.00168]
[1772891899231,0.07363011,67907.0,67902.0,0.07531549]
[1772891900041,0.07363011,67907.0,67902.0,0.00168]
[1772891903011,0.14669459,67912.0,67902.0,0.00168]
[1772891903012,0.00022001,67915.0,67903.0,0.02087807]
[1772891903229,0.00022001,67915.0,67905.0,0.02087807]
[1772891903411,0.07384169,67915.0,67906.0,0.01786047]
[1772891904192,0.00022001,67907.0,67906.0,0.00148]
[1772891905831,0.00022001,67907.0,67906.0,0.07511119]
[1772891907793,0.00022001,67914.0,67906.0,0.07511119]
[1772891908555,0.09003276,67918.0,67906.0,0.07511119]
[1772891908556,0.12273609,67919.0,67906.0,0.07511119]
[1772891908759,0.00022001,67921.0,67907.0,0.02087807]
[1772891909219,0.00022001,67921.0,67908.0,0.00012441]
[1772891909524,0.07383521,67921.0,67908.0,0.00012441]
[1772891910869,0.00022001,67921.0,67908.0,0.07375343]
[1772891911579,0.00022001,67919.0,67908.0,0.07375343]
[1772891914928,0.00022001,67922.0,67909.0,0.02003509]
[1772891918705,0.00022001,67922.0,67910.0,0.07362685]
[1772891921971,0.00035451,67924.0,67911.0,0.02003509]
[1772891922304,0.00035451,67924.0,67913.0,0.01680714]
[1772891924124,0.00035451,67924.0,67915.0,0.01680714]
[1772891925950,0.00035451,67924.0,67916.0,0.07362035]
[1772891926104,0.00035451,67924.0,67917.0,0.0167941]
[1772891926442,0.00035451,67924.0,67918.0,0.01826173]
[1772891927911,0.00035451,67924.0,67919.0,0.0736171]
[1772891928107,0.00035451,67924.0,67920.0,0.01678173]
[1772891930066,0.00035451,67924.0,67921.0,0.07361493]
[1772891930295,0.00035451,67924.0,67921.0,0.07344412]
[1772891930612,0.00035451,67924.0,67921.0,0.09019926]
[1772891931201,0.00022001,67926.0,67922.0,0.01675514]
[1772891932310,0.00022001,67926.0,67924.0,0.0167417]
[1772891932498,0.00022001,67926.0,67924.0,0.0182217]
[1772891934209,0.00022001,67926.0,67924.0,0.00148]
[1772891934359,0.00022001,67926.0,67925.0,0.07361059]
[1772891936639,0.00022001,67929.0,67925.0,0.07361059]
[1772891940161,0.00022001,67929.0,67926.0,0.0166884]
[1772891940365,0.00022001,67933.0,67926.0,0.0166884]
[1772891940794,0.00022001,67933.0,67926.0,0.01651761]
[1772891941409,0.0003147,67933.0,67925.0,0.07361059]
[1772891941606,0.01982874,67933.0,67925.0,0.07361059]
[1772891941842,0.02036144,67933.0,67925.0,0.07361059]
[1772891943926,0.0008474,67933.0,67925.0,0.09028874]
[1772891944727,0.0008474,67933.0,67925.0,0.09011793]
[1772891945030,0.0008474,67933.0,67926.0,0.01666597]
[1772891946030,0.0008474,67933.0,67927.0,0.07360843]
[1772891950581,0.07444964,67933.0,67927.0,0.07360843]
[1772891958115,0.07444964,67933.0,67926.0,0.01666597]
[1772891960816,0.07444964,67933.0,67926.0,0.01632443]
[1772891961195,0.09541861,67933.0,67925.0,0.07380843]
[1772891961537,0.09541861,67933.0,67925.0,0.0002]
[1772891966180,0.07444964,67933.0,67925.0,0.0002]
[1772891966383,0.02096897,67932.0,67925.0,0.0002]
[1772891967001,0.02150167,67932.0,67926.0,0.00148]
[1772891967148,0.07360409,67931.0,67926.0,0.00148]
[1772891967352,0.02096897,67930.0,67927.0,0.00148]
[1772891967954,0.02136587,67930.0,67927.0,0.00148]
[1772891969390,0.07360626,67929.0,67927.0,0.00148]
[1772891970120,0.07400316,67929.0,67927.0,0.00148]
[1772891978501,0.07400316,67929.0,67928.0,0.00148]
[1772891979809,0.07500316,67929.0,67928.0,0.00148]
[1772891980999,0.07373921,67932.0,67929.0,0.01611049]
[1772891981202,0.09265489,67932.0,67925.0,0.0002]
[1772891981423,0.01891568,67931.0,67926.0,0.00148]
[1772891981638,0.01891568,67931.0,67927.0,0.00148]
[1772891981837,0.01991568,67929.0,67928.0,0.00148]
[1772891982241,0.01991568,67929.0,67926.0,0.00148]
[1772891982722,0.01891568,67929.0,67926.0,0.00148]
[1772891983646,0.01991568,67929.0,67919.0,0.01611049]
[1772891983861,0.07360734,67928.0,67920.0,0.00148]
[1772891984065,0.07360734,67928.0,67920.0,0.01611049]
[1772891984264,0.07360734,67928.0,67921.0,0.00148]
[1772891984611,0.07360734,67928.0,67927.0,0.0002]
[1772891985587,0.07360734,67928.0,67927.0,0.00168]
[1772891985830,0.07360734,67928.0,67927.0,0.00148]
[1772891986457,0.09252302,67928.0,67927.0,0.00148]
[1772891986831,0.09352302,67928.0,67927.0,0.00148]
[1772891988107,0.07460734,67928.0,67927.0,0.00148]
[1772891988304,0.07360734,67928.0,67927.0,0.00148]
[1772891988532,0.07460734,67928.0,67927.0,0.00148]
[1772891988668,0.07560734,67928.0,67927.0,0.00148]
[1772891990578,0.0738214,67934.0,67927.0,0.00148]
[1772891990787,0.02050122,67933.0,67921.0,0.0898618]
[1772891991074,0.02050122,67933.0,67921.0,9.469e-05]
[1772891991196,0.02119286,67933.0,67922.0,0.00144]
[1772891991413,0.02119286,67933.0,67921.0,9.469e-05]
[1772891991612,0.02119286,67933.0,67923.0,0.00144]
[1772891991816,0.02119286,67933.0,67921.0,9.469e-05]
[1772891991817,0.01963722,67928.0,67924.0,0.00144]
[1772891992219,0.01963722,67928.0,67921.0,9.469e-05]
[1772891992466,0.01963722,67928.0,67922.0,0.00144]
[1772891994642,0.09324565,67927.0,67922.0,0.00144]
[1772891998415,0.01963722,67926.0,67922.0,0.00164]
[1772892000616,0.01956815,67924.0,67911.0,0.07382538]
[1772892000825,0.01956815,67922.0,67911.0,0.0002]
[1772892001026,0.07361059,67925.0,67912.0,0.00148]
[1772892001027,0.01956815,67918.0,67912.0,0.00148]
[1772892001229,0.07361059,67925.0,67904.0,0.07383335]
[1772892001230,0.01956815,67915.0,67908.0,0.00168]
[1772892001440,0.01956815,67915.0,67908.0,0.00148]
[1772892002287,0.07361059,67925.0,67909.0,0.01644915]
[1772892002288,0.02076813,67924.0,67909.0,0.01644915]
[1772892002857,0.02076813,67924.0,67910.0,0.07362685]
[1772892002858,0.07361276,67923.0,67910.0,0.07362685]
[1772892003088,0.0001218,67926.0,67911.0,0.01644915]
[1772892003284,4.139e-05,67923.0,67912.0,0.01644915]
[1772892004388,4.139e-05,67923.0,67912.0,0.01744915]
[1772892004590,4.139e-05,67923.0,67913.0,0.00148]
[1772892004791,4.139e-05,67923.0,67914.0,0.01648245]
[1772892004997,4.139e-05,67923.0,67915.0,0.07362143]
[1772892005190,4.139e-05,67923.0,67916.0,0.00148]
[1772892005633,4.139e-05,67923.0,67917.0,0.00148]
[1772892006034,4.139e-05,67923.0,67915.0,0.09010388]
[1772892006229,4.139e-05,67923.0,67916.0,0.00148]
[1772892006569,4.139e-05,67923.0,67916.0,0.01646254]
[1772892006770,4.139e-05,67923.0,67917.0,0.00148]
[1772892006971,0.07361168,67924.0,67917.0,0.00148]
[1772892007193,0.07361168,67924.0,67913.0,0.0736227]
[1772892007194,0.02076813,67923.0,67913.0,0.0736227]
[1772892007348,0.02076813,67923.0,67918.0,0.00148]
[1772892007773,0.02076813,67923.0,67919.0,0.00148]
[1772892008088,0.02076813,67923.0,67913.0,0.07366409]
[1772892008089,0.02076813,67923.0,67920.0,0.00148]
[1772892008290,0.02076813,67923.0,67911.0,0.07362533]
[1772892008488,0.02080953,67923.0,67912.0,0.00148]
[1772892008694,0.02080953,67923.0,67913.0,0.00148]
[1772892009047,0.02076813,67921.0,67911.0,0.07362533]
[1772892009444,0.02076813,67921.0,67912.0,0.00148]
[1772892009646,0.02076813,67921.0,67913.0,0.00148]
[1772892010095,0.02076813,67921.0,67911.0,0.07362533]
[1772892010278,0.02076813,67921.0,67914.0,0.00148]
[1772892010491,0.02076813,67921.0,67911.0,0.07362533]
[1772892010690,0.02076813,67921.0,67912.0,0.00148]
[1772892011526,0.02076813,67921.0,67916.0,0.00015]
[1772892011527,0.09438414,67920.0,67916.0,0.00015]
[1772892011883,0.09438414,67920.0,67912.0,0.07510423]
[1772892012118,0.09438414,67920.0,67912.0,0.07493352]
[1772892012874,0.09438414,67920.0,67913.0,0.00148]
[1772892013323,0.09438414,67920.0,67914.0,0.00148]
[1772892015528,0.07361601,67920.0,67914.0,0.00148]
[1772892017710,0.02076813,67921.0,67914.0,0.00148]
[1772892019497,0.02076813,67921.0,67914.0,0.00130935]
[1772892019795,0.07361601,67920.0,67914.0,0.00113865]
[1772892020174,0.07361601,67920.0,67903.0,0.0899499]
[1772892020175,0.02076813,67919.0,67903.0,0.0899499]
[1772892020340,0.02076813,67919.0,67903.0,0.01631567]
[1772892020695,0.02076813,67919.0,67900.0,0.07563694]
[1772892020696,0.02088993,67919.0,67900.0,0.002]
[1772892020990,0.02076813,67918.0,67898.0,0.0736397]
[1772892021169,0.02076813,67916.0,67901.0,0.00148]
[1772892022098,0.02076813,67914.0,67901.0,0.00148]
[1772892022791,0.02087853,67914.0,67901.0,0.00148]
[1772892024209,0.0736236,67913.0,67901.0,0.00148]
[1772892024442,0.02076813,67912.0,67901.0,0.00148]
[1772892025569,0.02087853,67912.0,67901.0,0.00148]
[1772892026357,0.02076813,67910.0,67901.0,0.00148]
[1772892028448,0.02076813,67908.0,67901.0,0.00148]
[1772892029229,0.02076813,67908.0,67901.0,0.00168]
[1772892029947,0.02076813,67908.0,67901.0,0.00148]
[1772892030554,0.02076813,67906.0,67901.0,0.00148]
[1772892032919,0.07363228,67905.0,67901.0,0.00148]
[1772892033159,0.01873012,67904.0,67896.0,0.00148]
[1772892033607,0.01873012,67904.0,67894.0,0.06760392]
[1772892033816,0.01873012,67904.0,67897.0,0.00148]
[1772892034221,0.01873012,67904.0,67894.0,0.06760392]
[1772892034386,0.01873012,67904.0,67898.0,0.00148]
[1772892034583,0.01873012,67904.0,67899.0,0.00015]
[1772892035161,0.01873012,67902.0,67894.0,0.07364408]
[1772892035293,0.01873012,67902.0,67895.0,0.00148]
[1772892035691,0.01873012,67902.0,67896.0,0.00148]
[1772892035935,0.01873012,67902.0,67896.0,0.00168]
[1772892036334,0.01873012,67902.0,67896.0,0.0017509]
[1772892036551,0.01873012,67902.0,67896.0,0.0002709]
[1772892036720,0.01873012,67902.0,67897.0,0.00148]
[1772892037127,0.01873012,67900.0,67897.0,0.00148]
[1772892038104,0.01873012,67900.0,67896.0,0.0002709]
[1772892038332,0.01873012,67900.0,67897.0,0.00148]
[1772892039271,0.07363878,67899.0,67897.0,0.00148]
[1772892039614,0.07363878,67899.0,67896.0,0.0002709]
[1772892039814,0.07363878,67899.0,67891.0,0.016136]
[1772892040063,0.01873012,67898.0,67892.0,0.00148]
[1772892040432,0.01864175,67898.0,67893.0,0.00148]
[1772892040965,0.01864175,67898.0,67894.0,0.00148]
[1772892041108,0.07364095,67897.0,67895.0,0.00148]
[1772892041917,0.07364095,67897.0,67890.0,0.073648]
[1772892042361,0.07364048,67898.0,67891.0,0.00148]
[1772892042565,0.07364048,67898.0,67892.0,0.00148]
[1772892043366,0.01873012,67897.0,67893.0,0.0002]
[1772892043524,0.01873012,67897.0,67893.0,0.00148]
[1772892045026,0.07364204,67896.0,67893.0,0.00148]
[1772892045426,0.01873012,67895.0,67889.0,0.00595]
[1772892045714,0.01873012,67895.0,67889.0,0.00743]
[1772892045905,0.01873012,67895.0,67889.0,0.00595]
[1772892046106,0.01873012,67895.0,67889.0,0.00743]
[1772892046518,0.01873012,67895.0,67890.0,0.00148]
[1772892046912,0.01873012,67895.0,67889.0,0.00595]
[1772892047115,0.07364204,67897.0,67890.0,0.00148]
[1772892048300,0.01873012,67896.0,67889.0,0.00743]
[1772892049245,0.07364312,67895.0,67889.0,0.00743]
[1772892052316,0.07364312,67895.0,67889.0,0.00595]
[1772892052519,0.07364312,67895.0,67889.0,0.00743]
[1772892053318,0.07364312,67895.0,67889.0,0.00595]
[1772892053569,0.07364312,67895.0,67889.0,0.00743]
[1772892053822,0.07364312,67895.0,67889.0,0.00595]
[1772892054056,0.07364312,67895.0,67889.0,0.00743]
[1772892054267,0.01873012,67894.0,67883.0,0.00148]
[1772892054850,0.01873012,67894.0,67879.0,0.08965847]
[1772892054851,0.04729952,67893.0,67880.0,1e-08]
[1772892055056,0.00026645,67891.0,67879.0,1e-08]
[1772892055231,0.00026645,67889.0,67879.0,1e-08]
[1772892055426,0.01873012,67888.0,67879.0,1e-08]
[1772892055950,0.01873012,67886.0,67879.0,1e-08]
[1772892058017,0.07365397,67885.0,67879.0,1e-08]
[1772892058594,0.09238409,67885.0,67875.0,0.0004]
[1772892058797,0.09238409,67885.0,67877.0,0.00148]
[1772892060524,0.01856334,67884.0,67877.0,0.00148]
[1772892061784,0.07365397,67885.0,67877.0,0.00148]
[1772892061982,0.07364637,67892.0,67880.0,0.01589589]
[1772892064774,0.01887399,67891.0,67880.0,0.01589589]
[1772892065129,0.01887399,67891.0,67877.0,0.07514262]
[1772892065433,0.01887399,67891.0,67877.0,0.00148]
[1772892065650,0.01887399,67891.0,67875.0,0.0004]
[1772892065651,0.01887399,67889.0,67875.0,0.00188]
[1772892065855,0.01887399,67889.0,67875.0,0.01772323]
[1772892066535,0.07365071,67888.0,67875.0,0.01772323]
[1772892067650,0.07365071,67888.0,67876.0,0.00148]
[1772892067848,0.07365071,67888.0,67880.0,0.0002]
[1772892070202,0.07365071,67888.0,67881.0,0.01583504]
[1772892070923,0.07364963,67891.0,67881.0,0.01583504]
[1772892071686,0.07364963,67891.0,67880.0,0.0002]
[1772892071687,0.01887399,67890.0,67880.0,0.0002]
[1772892074432,0.07364963,67889.0,67880.0,0.0002]
[1772892076758,0.09252362,67889.0,67880.0,0.0002]
[1772892077624,0.09252362,67889.0,67843.0,0.07369885]
[1772892077625,0.01887399,67888.0,67843.0,0.07369885]
[1772892077796,0.04735334,67880.0,67863.0,0.01554765]
[1772892078022,0.01887399,67879.0,67862.0,0.00575]
[1772892078159,0.02098446,67879.0,67862.0,0.00575]
[1772892078355,0.02035399,67879.0,67863.0,0.00148]
[1772892078594,0.02035399,67879.0,67863.0,0.01696526]
[1772892078800,0.04735334,67873.0,67847.0,0.07599127]
[1772892079004,0.04735334,67873.0,67847.0,0.07747127]
[1772892079005,0.01430162,67870.0,67847.0,0.07747127]
[1772892079206,0.01430162,67866.0,67848.0,0.01436105]
[1772892079419,0.01887399,67862.0,67849.0,0.00148]
[1772892079614,0.01430162,67862.0,67850.0,0.00148]
[1772892079828,0.01887399,67861.0,67850.0,0.00148]
[1772892080052,0.00148,67863.0,67851.0,0.01436105]
[1772892080984,0.07367893,67862.0,67851.0,0.01445335]
[1772892081186,0.01887399,67861.0,67851.0,9.23e-05]
[1772892081352,0.01887399,67861.0,67851.0,0.0015723]
[1772892081688,0.01887399,67861.0,67851.0,9.23e-05]
[1772892082168,0.01887399,67861.0,67850.0,0.00040161]
[1772892083738,0.07367133,67869.0,67851.0,0.01882325]
[1772892083939,0.07367133,67869.0,67850.0,0.00040144]
[1772892083940,0.00148,67868.0,67853.0,0.01436105]
[1772892084114,0.00148,67868.0,67855.0,0.01436105]
[1772892084320,0.14,67866.0,67855.0,0.01436105]
[1772892084680,0.02035399,67868.0,67855.0,0.01436105]
[1772892085011,0.0736735,67867.0,67855.0,0.01436105]
[1772892086654,0.09254749,67867.0,67855.0,0.01436105]
[1772892088359,0.01430162,67866.0,67854.0,0.00148]
[1772892089347,0.07367567,67865.0,67854.0,0.00148]
[1772892089592,0.08797729,67865.0,67854.0,0.00148]
[1772892090398,0.08797729,67865.0,67854.0,0.07516762]
[1772892090800,0.08689057,67865.0,67854.0,0.07516762]
[1772892094354,0.07258895,67865.0,67854.0,0.0751673]
[1772892094556,0.01430162,67863.0,67854.0,0.0751673]
[1772892094876,0.01430162,67863.0,67854.0,0.00148]
[1772892095472,0.07367893,67862.0,67854.0,0.00148]
[1772892095681,0.07367893,67862.0,67855.0,0.00148]
[1772892096093,0.07367893,67862.0,67853.0,0.07368869]
[1772892096274,0.07367893,67862.0,67854.0,0.00148]
[1772892096691,0.07367893,67862.0,67855.0,0.00148]
[1772892097124,0.00031012,67861.0,67843.0,1e-08]
[1772892097328,0.02021938,67860.0,67838.0,0.07518496]
[1772892097529,0.07368545,67856.0,67838.0,0.07518496]
[1772892097670,0.01430162,67854.0,67838.0,0.07518496]
[1772892097875,0.07399557,67856.0,67838.0,0.07518496]
[1772892098690,0.07399557,67856.0,67840.0,0.01986363]
[1772892098903,0.07368545,67856.0,67844.0,0.01986363]
[1772892099134,0.07368545,67856.0,67845.0,0.03291484]
[1772892099310,0.00031012,67855.0,67845.0,0.00148]
[1772892099721,0.01480598,67853.0,67845.0,0.00148]
[1772892101524,0.0151161,67853.0,67845.0,0.00148]
[1772892101735,0.01480598,67851.0,67843.0,0.00148]
[1772892102150,0.07368979,67852.0,67843.0,0.00148]
[1772892104652,0.0151161,67851.0,67844.0,0.00148]
[1772892105102,0.0151161,67851.0,67835.0,0.00575]
[1772892105103,0.388009,67848.0,67805.0,0.12472]
[1772892105320,0.4735334,67849.0,67782.0,0.07376513]
[1772892105321,0.02021938,67824.0,67782.0,0.07376513]
[1772892105535,0.01480598,67823.0,67782.0,0.07524513]
[1772892105741,0.0004,67825.0,67787.0,0.01126899]
[1772892105953,0.0004,67825.0,67792.0,0.01126899]
[1772892106163,0.04735334,67820.0,67793.0,0.01986363]
[1772892106379,0.04735334,67820.0,67796.0,0.07375066]
[1772892106380,0.07372673,67818.0,67796.0,0.07375066]
[1772892106579,0.01480598,67816.0,67799.0,0.01986363]
[1772892106790,0.01480598,67816.0,67801.0,0.01986363]
[1772892107219,0.01480598,67816.0,67797.0,0.0001793]
[1772892107453,0.01480598,67816.0,67800.0,0.00148]
[1772892107668,0.00188094,67818.0,67803.0,0.01986363]
[1772892107879,0.00188094,67818.0,67805.0,0.03206261]
[1772892108106,0.01520692,67818.0,67806.0,0.01986363]
[1772892108555,0.07372782,67817.0,67806.0,0.02134363]
[1772892108793,0.0885338,67817.0,67806.0,0.02134363]
[1772892109010,0.01480598,67816.0,67806.0,0.00148]
[1772892109645,0.01480598,67815.0,67802.0,0.00148]
[1772892109855,0.07372782,67817.0,67784.0,0.07376316]
[1772892109856,0.01480598,67813.0,67784.0,0.07376316]
[1772892110066,0.01480598,67808.0,67785.0,0.00148]
[1772892110272,0.01480598,67799.0,67785.0,0.00148]
[1772892110493,0.01480598,67799.0,67781.0,0.00575]
[1772892110708,0.01480598,67799.0,67764.0,0.05170997]
[1772892110709,0.02021938,67795.0,67764.0,0.05170997]
[1772892110913,0.02021938,67795.0,67740.0,0.02372886]
[1772892110914,0.14,67793.0,67767.0,0.01986363]
[1772892111135,0.00148,67792.0,67771.0,0.01986363]
[1772892111338,0.01480598,67791.0,67768.0,0.00148]
[1772892111561,0.01480598,67789.0,67768.0,0.02134363]
[1772892111779,0.02021938,67787.0,67768.0,0.01986363]
[1772892111986,0.00040069,67789.0,67769.0,0.00148]
[1772892112213,0.01480598,67788.0,67767.0,0.001]
[1772892112421,0.00040069,67789.0,67770.0,0.01986363]
[1772892112653,0.00040069,67789.0,67775.0,0.01986363]
[1772892112890,0.00040069,67789.0,67778.0,0.00079258]
[1772892113093,0.00040069,67789.0,67779.0,0.01986363]
[1772892113309,0.00025069,67789.0,67778.0,0.01986363]
[1772892113515,0.00148,67798.0,67780.0,0.00074705]
[1772892113730,0.07414641,67800.0,67780.0,0.00074705]
[1772892113731,0.0004,67800.0,67784.0,0.00074705]
[1772892113935,0.0004,67800.0,67787.0,0.01986363]
[1772892114104,0.0004,67800.0,67780.0,0.00040069]
[1772892114105,0.01596571,67799.0,67788.0,0.00148]
[1772892114309,0.01596571,67799.0,67790.0,0.01986363]
[1772892114310,0.01199193,67799.0,67790.0,0.01986363]
[1772892114509,0.01199193,67799.0,67793.0,0.09361755]
[1772892114693,0.0004,67800.0,67793.0,0.09361755]
[1772892115261,0.00575,67808.0,67794.0,0.01986363]
[1772892116003,0.09585008,67808.0,67794.0,0.01986363]
[1772892116773,0.01641395,67805.0,67794.0,0.07375175]
[1772892117003,0.01641395,67805.0,67792.0,0.07375438]
[1772892117222,0.01641395,67803.0,67792.0,0.04886555]
[1772892117440,0.02021938,67801.0,67790.0,0.00148]
[1772892117666,0.02021938,67799.0,67785.0,0.00148]
[1772892117837,0.01641395,67796.0,67781.0,0.00148]
[1772892118039,0.01641395,67794.0,67780.0,0.07416822]
[1772892118242,0.01641395,67794.0,67781.0,0.00148]
[1772892118426,0.00219619,67807.0,67787.0,0.0002]
[1772892118427,0.01640093,67806.0,67787.0,0.0002]
[1772892118628,0.01640093,67803.0,67787.0,0.0002]
[1772892118849,0.01640093,67801.0,67788.0,0.01986363]
[1772892119043,0.00031012,67800.0,67788.0,0.02134363]
[1772892119367,0.01671105,67800.0,67788.0,0.02134363]
[1772892119508,0.00031012,67800.0,67788.0,0.02134363]
[1772892119715,0.00031012,67803.0,67788.0,0.02134363]
[1772892120064,0.01640093,67801.0,67787.0,0.0002]
[1772892120295,0.00031012,67803.0,67788.0,0.01986363]
[1772892120492,0.07374142,67805.0,67788.0,0.02471868]
[1772892121283,0.01640246,67804.0,67790.0,0.02471868]
[1772892121457,0.01640246,67804.0,67791.0,0.00148]
[1772892121864,0.00188607,67807.0,67792.0,0.02471868]
[1772892122748,0.0315739,67808.0,67792.0,0.02541084]
[1772892122948,0.07373821,67808.0,67792.0,0.02541084]
[1772892123190,0.00148,67815.0,67796.0,0.02541084]
[1772892123410,0.01782918,67815.0,67798.0,0.02541084]
[1772892123631,0.01634918,67815.0,67797.0,0.00148]
[1772892123829,0.01634918,67815.0,67790.0,0.07375651]
[1772892123830,0.0239441,67812.0,67790.0,0.07375651]
[1772892124055,0.01542722,67809.0,67775.0,0.03172918]
[1772892124270,0.0239441,67806.0,67781.0,0.07951612]
[1772892124463,0.01542722,67807.0,67784.0,0.00607959]
[1772892124692,0.00148,67806.0,67787.0,0.02541084]
[1772892124903,0.01542722,67805.0,67790.0,0.001]
[1772892125100,0.01542722,67805.0,67791.0,0.00148]
[1772892125303,0.08916865,67805.0,67792.0,0.07375501]
[1772892125598,0.07374143,67805.0,67792.0,0.10521036]